[Event "CCT Airthings Masters Play-In 2023"]
[Site "Online"]
[Date "2023.02.03"]
[Round "3"]
[White "kirillshevchenko"]
[Black "Byniolus"]
[Result "1-0"]
[ECO "D15"]
[WhiteElo "2513"]
[BlackElo "2230"]
[Annotator "TA"]
[PlyCount "97"]
[EventDate "2023.02.03"]
[EventType "swiss"]
[EventCountry "NET"]
[SourceTitle "playchess.com"]
[Source "ChessBase"]
[SourceQuality "1"]
[TimeControl "600+2"]

{[%evp 9,96,49,71,68,86,53,106,104,99,106,108,117,121,129,117,112,106,120,190,132,141,143,131,131,143,133,135,126,108,126,153,116,149,153,143,131,146,129,172,172,173,144,174,174,218,183,237,112,157,130,132,130,135,127,122,129,209,131,212,212,231,221,210,223,193,185,272,272,374,326,460,460,443,438,1732,1599,2244,2270,1581,1745,1281,1484,1486,4622,2377,1956,1930,1435,29999]} 1. d4 {[%emt 0:00:03]} d5 {[%emt 0:00:07]} 2. c4 {[%emt 0:00:01]} c6 {[%emt 0:00:00]} 3. Nf3 {[%emt 0:00:02]} Nf6 {[%emt 0:00:01]} 4. Nc3 {[%emt 0:00:01]} Qb6 {[%emt 0:00:04]} 5. Qc2 {[%emt 0:00:06]} e6 {[%emt 0:01:46]} 6. Bg5 {[%emt 0:00:12] D15: Slav Defence: 4 Nc3 a6 and gambit lines after 4 Nc3 dxc4.} Be7 {[%emt 0:00:05]} 7. e3 {[%emt 0:00:10]} h6 {[%emt 0:00:19]} (7... O-O $14) 8. Bxf6 $16 {[%emt 0:00:16] White is better.} Bxf6 {[%emt 0:00:37] [#]} 9. cxd5 $1 {[%emt 0:00:00]} exd5 {[%emt 0:01:07] [#]} 10. Nxd5 $1 {[%emt 0:00:03][%mdl 576] Pin} Qa5+ {[%emt 0:00:01]} 11. Nc3 {[%emt 0:00:01] White is more active.} O-O {[%emt 0:00:01]} 12. Be2 {[%emt 0:00:26]} c5 {[%emt 0:00:20]} 13. O-O {[%emt 0:00:17]} Nc6 {[%emt 0:00:20]} (13... cxd4 $16 14. exd4 (14. Nxd4 Nc6 $16) 14... Bf5) 14. Ne4 {[%emt 0:00:04]} ({Better is} 14. d5 $18 Bxc3 15. bxc3 (15. Qxc3 Qxc3 16. bxc3 Ne7 $16)) 14... cxd4 {[%emt 0:00:27]} 15. Nxf6+ {[%emt 0:00:03]} gxf6 {[%emt 0:00:00]} 16. Nxd4 {[%emt 0:00:11]} Nxd4 {[%emt 0:00:02]} 17. exd4 {[%emt 0:00:01] [#]} Bf5 $146 {[%emt 0:00:02]} ({Predecessor:} 17... Rd8 18. Rfd1 Be6 19. a3 Rac8 20. Qd2 Qg5 21. Bf3 Bd5 22. Bxd5 Rxd5 23. g3 Rc4 {0-1 Stangl,A (2023)-Margaryan,S (1434) GER-ch Rapid (Women) 2022 (6)}) 18. Qc5 {[%emt 0:00:12]} Qxc5 {[%emt 0:00:15]} 19. dxc5 {[%emt 0:00:00]} Rac8 {[%emt 0:00:01]} 20. Rac1 {[%emt 0:00:07]} a5 {[%emt 0:00:28]} 21. Bf3 {[%emt 0:00:38]} Rc7 {[%emt 0:00:05]} 22. Rc3 {[%emt 0:00:00]} Rd8 {[%emt 0:00:13]} 23. Rfc1 {[%emt 0:00:08]} Rd2 {[%emt 0:00:11] [#]} 24. Rb3 {[%emt 0:00:03]} Bc8 {[%emt 0:00:16]} 25. h3 {[%emt 0:00:28]} Kf8 {[%emt 0:00:38]} 26. Rb6 {[%emt 0:00:04]} Ke7 {[%emt 0:00:09]} 27. Rc3 {[%emt 0:00:07]} Rd4 {[%emt 0:00:28]} (27... Kf8 {keeps fighting.} 28. a4 (28. Rxf6 Rxb2 29. Bd5 Kg7 $16) 28... Kg7) 28. Re3+ {[%emt 0:00:58]} (28. b3 $18 {has better winning chances.}) 28... Kf8 {[%emt 0:00:17]} 29. Rxf6 {[%emt 0:00:03]} Rxc5 {[%emt 0:00:02]} 30. Rxh6 {[%emt 0:00:01]} Rd2 {[%emt 0:00:19]} 31. Rb6 {[%emt 0:02:21]} Rc1+ {[%emt 0:00:11]} 32. Kh2 {[%emt 0:00:01]} Rxf2 {[%emt 0:00:01]} (32... Rcc2 $16 {was necessary.} 33. Reb3 (33. Bxb7 Rxf2 34. Bc6 Be6 $16) 33... Be6) 33. Bxb7 {[%emt 0:00:10]} Bxb7 {[%emt 0:00:12]} (33... Rcc2 $16 {was worth a try.}) 34. Rxb7 {[%emt 0:00:01][%mdl 4096] Endgame KRR-KRR} Rcc2 {[%emt 0:00:00]} 35. Rb8+ {[%emt 0:00:01]} Kg7 {[%emt 0:00:04]} 36. Rg3+ {[%emt 0:00:00]} Kf6 {[%emt 0:00:07]} 37. Rb6+ {[%emt 0:00:53]} Ke7 {[%emt 0:00:06]} (37... Ke5 $142 38. Rb5+ Kf6) 38. a4 $18 {[%emt 0:00:01]} f5 {[%emt 0:00:32]} 39. Kg1 {[%emt 0:00:12]} f4 {[%emt 0:00:16]} (39... Kf7 $142 40. b4 axb4 41. Rxb4 Ra2) 40. Rg7+ {[%emt 0:00:01]} Kf8 {[%emt 0:00:04]} 41. Rbb7 {[%emt 0:00:00]} Rxb2 {[%emt 0:00:43]} (41... Rcd2 $142 42. Rbf7+ Ke8) 42. Rgf7+ {[%emt 0:00:04]} Kg8 {[%emt 0:00:13]} 43. Rxb2 {[%emt 0:00:01]} Rxb2 {[%emt 0:00:01]} 44. Rxf4 {[%emt 0:00:01] KR-KR} Rb4 {[%emt 0:00:03]} 45. g3 {[%emt 0:00:08] Black must now prevent Kf2.} (45. Rxb4 axb4 46. Kf2 b3 $19) 45... Kg7 {[%emt 0:00:03]} 46. Kg2 {[%emt 0:00:02]} Kg6 {[%emt 0:00:03]} 47. h4 {[%emt 0:00:02] Hoping for Kf3.} Kh5 {[%emt 0:00:08]} 48. Rf5+ {[%emt 0:00:02]} Kg4 {[%emt 0:00:01]} 49. Rg5# {[%emt 0:00:00] Weighted Error Value: White=0.17 (very precise) /Black=0.51} 1-0

[Event "CCT Airthings Masters Play-In 2023"]
[Site "Online"]
[Date "2023.02.03"]
[Round "3"]
[White "Blomqvist, Erik"]
[Black "vugarrasulov"]
[Result "1-0"]
[ECO "C78"]
[WhiteElo "2510"]
[BlackElo "2531"]
[Annotator "TA"]
[PlyCount "81"]
[EventDate "2023.02.03"]
[EventType "swiss"]
[EventCountry "NET"]
[SourceTitle "playchess.com"]
[Source "ChessBase"]
[SourceQuality "1"]
[TimeControl "600+2"]

{[%evp 16,81,34,20,18,7,12,10,35,29,30,18,23,12,68,78,83,78,93,68,85,82,127,108,109,43,68,54,56,72,51,47,130,105,128,46,33,0,0,0,87,84,64,0,0,0,45,43,45,39,104,87,422,425,1285,1274,29989,29990,29990,29991,29991,29992,29992,29993,29993,29994,29997,29994]} 1. e4 {[%emt 0:00:03]} e5 {[%emt 0:00:05]} 2. Nf3 {[%emt 0:00:01]} Nc6 {[%emt 0:00:02]} 3. Bb5 {[%emt 0:00:00]} a6 {[%emt 0:00:05]} 4. Ba4 {[%emt 0:00:02]} Nf6 {[%emt 0:00:01]} 5. O-O {[%emt 0:00:01]} b5 {[%emt 0:00:03]} 6. Bb3 {[%emt 0:00:01]} Bc5 {[%emt 0:00:00]} 7. c3 {[%emt 0:00:01]} d6 {[%emt 0:00:01]} 8. d4 {[%emt 0:00:01]} Bb6 {[%emt 0:00:01]} 9. Be3 $1 {[%emt 0:00:04][%mdl 4] now scores much better than the old 9.a4.} Rb8 {[%emt 0:00:22] C78: Ruy Lopez: Archangelsk and Möller Defences.} 10. Nbd2 {[%emt 0:00:06]} O-O {[%emt 0:00:07]} 11. Re1 {[%emt 0:00:03]} h6 {[%emt 0:00:02] The position is equal.} 12. h3 {[%emt 0:00:01]} Bb7 {[%emt 0:00:08]} 13. a3 {[%emt 0:00:57]} exd4 {[%emt 0:00:38]} 14. cxd4 {[%emt 0:00:47] [#]} d5 $146 {[%emt 0:00:16]} (14... Ne7 $11) ({Predecessor:} 14... Re8 15. Ba2 Na7 16. Qc2 Bxe4 17. Nxe4 Rxe4 18. Bxh6 gxh6 19. Rxe4 Nxe4 20. Qxe4 Bxd4 21. Qxd4 c5 22. Qg4+ Qg5 23. Nxg5 Nc6 24. Ne6+ {1-0 Lahdenmaeki,L-Cofer,D LSS CP-2006-P-00052}) 15. e5 $14 {[%emt 0:00:09]} Ne4 {[%emt 0:00:02]} 16. Bc2 {[%emt 0:00:24]} Ne7 {[%emt 0:00:08]} 17. Qb1 {[%emt 0:00:49]} Nxd2 {[%emt 0:01:31]} 18. Nxd2 {[%emt 0:00:07]} Qd7 {[%emt 0:01:12]} 19. b4 {[%emt 0:00:12]} Bc8 {[%emt 0:00:10]} 20. g4 {[%emt 0:00:16]} (20. Nf3 $16) 20... h5 {[%emt 0:00:43]} 21. f3 {[%emt 0:00:49] White is more active.} (21. gxh5 $2 Qxh3 22. Qd1 Bg4 $19) 21... f5 {[%emt 0:00:34]} 22. exf6 $1 {[%emt 0:00:23]} (22. gxh5 $2 f4 23. e6 (23. Bh7+ $2 Kh8 $19) 23... Qxe6 $19) 22... Rxf6 {[%emt 0:00:02]} 23. Kg2 {[%emt 0:00:15]} (23. gxh5 $2 Qxh3 24. Re2 (24. Bf2 $2 Bg4 $19) 24... Qxh5 $19) 23... Nc6 {[%emt 0:00:47] [#]} ({Better is} 23... Qd6 $1 $14) 24. Nb3 $1 $16 {[%emt 0:00:19]} (24. gxh5 $2 Qxh3+ 25. Kg1 Nxd4 $19) 24... hxg4 {[%emt 0:00:21]} 25. hxg4 {[%emt 0:00:02]} (25. fxg4 $16 {And now Bg5 would win.} Bb7 26. Bf5) 25... Rxf3 $1 $14 {[%emt 0:00:06][%mdl 64] Remove Defender, Decoy} 26. Kxf3 {[%emt 0:00:31][%cal Bg2f3,Bf3f2,Bf2e1][%mdl 32]} Qxg4+ {[%emt 0:00:03]} 27. Kf2 {[%emt 0:00:00]} Bf5 {[%emt 0:00:35] Against Bh7+} 28. Bxf5 $16 {[%emt 0:00:35]} Rf8 {[%emt 0:00:02]} 29. Rg1 {[%emt 0:00:05]} (29. Re2 $1 $14 Rxf5+ 30. Ke1) 29... Rxf5+ $11 {[%emt 0:00:02]} 30. Ke1 {[%emt 0:00:02]} Qf3 {[%emt 0:00:07]} (30... Qh3 $5 31. Kd1 Qxe3 32. Qxf5 Qxg1+ 33. Kd2 Qg2+ 34. Ke3 Bxd4+ {[%mdl 64] Decoy} 35. Nxd4 Nxd4 36. Kxd4 Qb2+ 37. Kxd5 Qxa1 $11) 31. Qd3 {[%emt 0:01:29]} Ne5 $1 {[%emt 0:00:02]} 32. Qe2 {[%emt 0:00:41]} (32. dxe5 Rxe5 33. Kd2 Rxe3 $15) 32... Qh3 {[%emt 0:00:11]} (32... Nc4 $14) 33. Nd2 {[%emt 0:00:29] Black must now prevent Kd1.} ({Of course not} 33. Kd1 $6 Nc4 $11) 33... Nc6 $2 {[%emt 0:00:55][%mdl 8192] Loses the game.} (33... Bxd4 $16 {is more resistant.} 34. Bxd4 Qh4+ 35. Bf2 Rxf2 36. Qxe5 (36. Rxg7+ Kxg7 37. Qxe5+ Kf8 $11) 36... Rg2+ 37. Kd1 Rxg1+ 38. Kc2 Rxa1 39. Qxa1 Qh7+ 40. Kc3 Qh6) 34. Rc1 $18 {[%emt 0:00:36]} Bxd4 {[%emt 0:00:25]} (34... Nxd4 $142 35. Bxd4 Bxd4 36. Qe6+ Kh7 37. Qg6+ Kg8) 35. Bxd4 {[%emt 0:00:14] White wants to mate with Qe8+.} ({Not} 35. Rxc6 Bxe3 36. Rxa6 (36. Qg4 Bxd2+ 37. Ke2 Qe3+ 38. Kd1 Bc3 $11) 36... Bxg1 37. Qe6+ (37. Qxb5 $2 {too greedy.} Qh5 $19) 37... Kh8 $18) 35... Nxd4 {[%emt 0:00:00]} 36. Qe8+ {[%emt 0:00:09] White mates.} Rf8 {[%emt 0:00:12] [#]} 37. Rxg7+ $3 {[%emt 0:00:02][%mdl 576] Decoy} Kxg7 {[%emt 0:00:03]} 38. Rxc7+ {[%emt 0:00:01]} Kf6 {[%emt 0:00:09]} 39. Qxf8+ {[%emt 0:00:04]} Ke5 {[%emt 0:00:01]} 40. Qg7+ {[%emt 0:00:04]} Ke6 {[%emt 0:00:07]} 41. Qd7+ {[%emt 0:00:03] Beautiful play by Blomqvist!   Weighted Error Value: White=0.10 (very precise) /Black=0.39} 1-0

[Event "CCT Airthings Masters Play-In 2023"]
[Site "Online"]
[Date "2023.02.03"]
[Round "3"]
[White "Matibar"]
[Black "Parhamov"]
[Result "0-1"]
[ECO "B80"]
[WhiteElo "2510"]
[BlackElo "2635"]
[Annotator "TA"]
[PlyCount "104"]
[EventDate "2023.02.03"]
[EventType "swiss"]
[EventCountry "NET"]
[SourceTitle "playchess.com"]
[Source "ChessBase"]
[SourceQuality "1"]
[TimeControl "600+2"]

{[%evp 18,104,18,0,37,20,6,0,-13,-4,0,-19,62,59,98,95,89,89,113,136,172,170,168,168,170,175,158,173,131,130,106,70,64,17,18,18,20,31,25,0,0,0,0,-6,0,-42,-29,-71,-71,-83,-73,-111,-127,-129,-120,-131,-135,-294,-290,-267,-256,-281,-277,-395,-391,-380,-373,-416,-339,-333,-341,-326,-334,-359,-322,-210,-178,-287,-274,-1382,-1384,-1222,-1211,-639,-557,-597,-454,-5501,-2352]} 1. e4 {[%emt 0:00:08]} c5 {[%emt 0:00:05]} 2. Nf3 {[%emt 0:00:02]} e6 {[%emt 0:00:02]} 3. d4 {[%emt 0:00:04]} cxd4 {[%emt 0:00:01]} 4. Nxd4 {[%emt 0:00:00]} a6 {[%emt 0:00:01]} 5. Nc3 {[%emt 0:00:07]} Qc7 {[%emt 0:00:07]} 6. g3 {[%emt 0:01:03]} Nf6 {[%emt 0:00:05]} 7. Bg2 {[%emt 0:00:02]} d6 {[%emt 0:00:08]} 8. O-O {[%emt 0:00:02]} Be7 {[%emt 0:00:02]} 9. a4 {[%emt 0:00:10]} O-O $1 {[%emt 0:00:11][%mdl 4] is recently more successful than 9...Nc6.} 10. a5 {[%emt 0:00:02]} Bd7 {[%emt 0:00:09] B80: Sicilian Scheveningen: 6 g3 and 6 Be3, including English Attack.} 11. h3 {[%emt 0:00:07]} Nc6 {[%emt 0:00:03][%cal Bb8c6,Bc6e5,Be5c4][%mdl 32]} 12. Nb3 {[%emt 0:00:01]} Ne5 {[%emt 0:00:06] The position is equal.} 13. f4 {[%emt 0:00:13]} Nc4 {[%emt 0:00:02] [#]} 14. g4 $146 {[%emt 0:00:01][%cal Bg3g4,Bg4g5][%mdl 32]} ({Predecessor:} 14. Qe2 Rac8 15. Re1 d5 16. exd5 Bb4 17. dxe6 Bxe6 18. Kh2 Nxb2 19. Bxb2 Bxc3 20. Bxc3 Qxc3 21. Bxb7 {0-1 Pourkashiyan,A (2371)-Hejazipour,M (2240) Asia-ch (Women) 2011 (1)}) 14... Bb5 {[%emt 0:00:06]} ({Black should play} 14... h6 $11) 15. g5 $36 {[%emt 0:00:35][%mdl 2048] White fights for an advantage.} Nd7 {[%emt 0:00:01]} 16. Rf2 {[%emt 0:00:24]} Rfe8 {[%emt 0:00:20]} 17. Nd4 {[%emt 0:01:49]} Nxa5 {[%emt 0:00:02] [#]} 18. f5 $1 {[%emt 0:00:01]} (18. Ncxb5 axb5 19. f5 exf5 $14) 18... Bf8 {[%emt 0:00:14]} 19. fxe6 {[%emt 0:01:18]} ({Don't play} 19. Ncxb5 axb5 20. fxe6 fxe6 $16) 19... fxe6 {[%emt 0:00:01]} 20. Ncxb5 {[%emt 0:00:01]} ({Weaker is} 20. Ndxb5 axb5 21. Nxb5 Qb6 $14) 20... axb5 {[%emt 0:00:01] [#]} 21. b4 $1 {[%emt 0:00:01]} Nc4 {[%emt 0:00:41]} 22. Rxa8 {[%emt 0:00:22]} ({Much less strong is} 22. Nxb5 $6 Qb6 23. Rxa8 Rxa8 $16) 22... Rxa8 {[%emt 0:00:01]} 23. Nxe6 {[%emt 0:00:00]} Qb6 {[%emt 0:00:01]} 24. Bf4 {[%emt 0:01:09]} (24. Qd5 {keeps more tension.} Qc6 25. e5 Qxd5 26. Bxd5 Ndb6 27. Bxb7 Rb8 28. Rxf8+ Rxf8 29. Nxf8 Kxf8 30. exd6 Nxd6 31. Bc6) 24... Nde5 {[%emt 0:00:18]} 25. Bf1 {[%emt 0:00:48]} (25. Qd5 $14 {is superior.} Qc6 26. Nd4+ {[%mdl 64] Discovered Attack} Qxd5 27. exd5) 25... Ne3 $1 $11 {[%emt 0:01:08] A dynamic duo of knights.} 26. Qd4 {[%emt 0:00:13]} Qxd4 {[%emt 0:00:02]} 27. Nxd4 {[%emt 0:00:00]} Nxf1 {[%emt 0:00:24]} 28. Rxf1 {[%emt 0:00:08][%cal Oc2c3]} Rc8 {[%emt 0:01:00]} 29. Bd2 {[%emt 0:00:19]} Nc4 {[%emt 0:00:22]} 30. Bc1 {[%emt 0:00:13]} Nb6 {[%emt 0:00:16]} 31. Rf5 {[%emt 0:00:10] [#]} d5 $1 {[%emt 0:00:18][%mdl 64] Discovered Attack} 32. e5 {[%emt 0:00:26]} (32. Be3 g6) 32... Bxb4 {[%emt 0:00:11]} 33. Kf1 {[%emt 0:00:15][%cal Oe5e6]} g6 {[%emt 0:00:36]} 34. Rf3 {[%emt 0:00:08][%cal Oc1f4]} Bc3 {[%emt 0:00:02]} 35. Nxb5 {[%emt 0:00:03]} Bxe5 {[%emt 0:00:01]} 36. Be3 {[%emt 0:00:22]} Nc4 {[%emt 0:00:07]} 37. c3 $2 {[%emt 0:00:02]} (37. Ke2 $17 {might work better.}) 37... Rf8 $19 {[%emt 0:00:30]} 38. Rxf8+ {[%emt 0:00:04]} Kxf8 {[%emt 0:00:01][%mdl 4096] Endgame KBN-KBN} 39. Bc5+ {[%emt 0:00:01]} Kf7 {[%emt 0:00:01]} 40. Kg2 {[%emt 0:00:00]} (40. Ke2 $142) 40... Ke6 {[%emt 0:00:01]} 41. Kf3 {[%emt 0:00:01]} Nd2+ {[%emt 0:00:06]} 42. Kg4 {[%emt 0:00:02]} Ne4 {[%emt 0:00:04] Wards off h4} 43. Bd4 {[%emt 0:00:01]} Bxd4 {[%emt 0:00:10]} 44. cxd4 {[%emt 0:00:01] KN-KN} Kd7 {[%emt 0:00:02] Hoping for ...Kc6.} 45. Kf4 {[%emt 0:00:01]} Nd6 {[%emt 0:00:20]} 46. Nc3 {[%emt 0:00:02]} Ke6 {[%emt 0:00:04] Threatens to win with ...b5.} 47. Na4 {[%emt 0:00:06]} Ne4 {[%emt 0:00:04] White must now prevent ...b5.} 48. h4 $2 {[%emt 0:00:05]} (48. Nb2) 48... b5 {[%emt 0:00:02][%cal Bb7b5,Bb5b4,Bb4b3][%mdl 32] Black is clearly winning.} 49. Nb2 {[%emt 0:00:07]} b4 {[%emt 0:00:01]} 50. Nd3 {[%emt 0:00:06]} b3 {[%emt 0:00:01]} 51. Nb2 {[%emt 0:00:06]} Nd2 {[%emt 0:00:12] aiming for ...Nc4.} 52. Nd3 {[%emt 0:00:02]} (52. Na4 $142) 52... Kd6 {[%emt 0:00:01] Never resign too early!   Weighted Error Value: White=0.35/Black=0.15 (very precise)} 0-1

[Event "CCT Airthings Masters Play-In 2023"]
[Site "Online"]
[Date "2023.02.03"]
[Round "3"]
[White "Alexandr_Predke"]
[Black "Oleksandr_Bortnyk"]
[Result "1-0"]
[ECO "C41"]
[WhiteElo "2509"]
[BlackElo "2630"]
[Annotator "TA"]
[PlyCount "163"]
[EventDate "2023.02.03"]
[EventType "swiss"]
[EventCountry "NET"]
[SourceTitle "playchess.com"]
[Source "ChessBase"]
[SourceQuality "1"]
[TimeControl "600+2"]

{[%evp 14,163,37,39,40,35,49,23,32,42,59,60,72,64,63,66,73,67,93,80,91,71,99,97,93,98,112,71,71,66,68,67,68,58,53,59,74,71,72,70,76,55,69,69,69,69,69,69,69,69,70,70,77,70,86,70,70,70,70,70,70,70,70,76,76,77,79,79,79,77,77,77,84,84,84,84,85,85,85,50,85,85,69,82,284,277,264,266,373,358,325,337,495,425,748,397,738,735,29986,29987,29987,29974,29978,29973,2412,0,2357,1900,1638,29967,29974,1214,29973,29976,29974,832,1377,1216,1896,1845,4065,1323,29980,29981,29980,29981,29983,29984,29984,29985,29984,29985,29985,29986,29986,29985,29987,29988,29989,29986,29986,29987,29986,29987,29988,29988,29988,29989,29992,29993,29993,29992]} 1. e4 {[%emt 0:00:03]} d6 {[%emt 0:00:17]} 2. d4 {[%emt 0:00:03]} Nf6 {[%emt 0:00:01]} 3. Nc3 {[%emt 0:00:02]} e5 {[%emt 0:00:01]} 4. Nf3 {[%emt 0:00:06]} Nbd7 {[%emt 0:00:02]} 5. Bc4 {[%emt 0:00:02]} Be7 {[%emt 0:00:01]} 6. O-O {[%emt 0:00:02]} c6 {[%emt 0:00:01]} 7. a4 {[%emt 0:00:02]} Qc7 {[%emt 0:00:06]} 8. Re1 {[%emt 0:00:03]} h6 {[%emt 0:00:01] C41: Philidor Defence.} 9. Ba2 {[%emt 0:00:04]} O-O {[%emt 0:00:03]} 10. Nh4 {[%emt 0:00:35]} Re8 {[%emt 0:01:01] White has an edge.} 11. Nf5 {[%emt 0:00:14]} Bf8 {[%emt 0:00:11] [#]} 12. d5 $146 {[%emt 0:00:27]} ({Predecessor:} 12. Be3 exd4 13. Bxd4 Ne5 14. Ng3 Be6 15. Bxe6 fxe6 16. Qe2 Qf7 17. Rf1 Qg6 18. f4 {1-0 Dyachkov,S (2549)-Krutko,A (2310) RUS-chT Clubs sf 2005 (5)}) 12... Nc5 {[%emt 0:00:13]} 13. Qf3 {[%emt 0:00:14][%cal Of5h6] Threatens to win with Nxh6+!} Bxf5 {[%emt 0:01:17]} 14. Qxf5 {[%emt 0:00:01][%cal Oc1h6]} Qc8 {[%emt 0:00:48]} 15. Qf3 {[%emt 0:00:13][%cal Oc1h6]} Qg4 {[%emt 0:00:01]} 16. Qxg4 {[%emt 0:00:31]} Nxg4 {[%emt 0:00:00]} 17. a5 {[%emt 0:00:06]} a6 {[%emt 0:00:16]} 18. f3 {[%emt 0:00:15]} Nf6 {[%emt 0:00:01]} 19. Be3 {[%emt 0:00:00]} Rec8 {[%emt 0:00:01]} 20. Bxc5 {[%emt 0:01:47]} dxc5 {[%emt 0:00:03] Black is weak on the light squares} 21. dxc6 {[%emt 0:00:22]} Rxc6 {[%emt 0:00:00]} 22. Bc4 {[%emt 0:00:02]} Rd8 {[%emt 0:00:05]} 23. Nd5 {[%emt 0:00:18]} Nxd5 {[%emt 0:00:37]} 24. exd5 {[%emt 0:01:03][%mdl 64] [#] Discovered Attack} Rc7 {[%emt 0:00:01]} 25. Rxe5 {[%emt 0:00:05]} Bd6 {[%emt 0:00:00]} 26. Re3 {[%emt 0:00:12]} g6 {[%emt 0:00:02]} 27. Rae1 {[%emt 0:00:08]} Kg7 {[%emt 0:00:01]} 28. Rb3 {[%emt 0:00:12]} Rcd7 {[%emt 0:00:04]} 29. g3 {[%emt 0:00:13]} Kf8 {[%emt 0:00:17]} 30. Bf1 {[%emt 0:00:21]} Re8 {[%emt 0:00:07]} 31. Rxe8+ {[%emt 0:00:09]} Kxe8 $14 {[%emt 0:00:00][%mdl 4096] Endgame KRB-KRB} 32. f4 {[%emt 0:00:15]} Re7 {[%emt 0:00:08]} 33. Kf2 {[%emt 0:00:04]} f5 {[%emt 0:00:15]} 34. Bd3 {[%emt 0:00:10]} Kd8 {[%emt 0:00:02]} 35. Rc3 {[%emt 0:00:12]} h5 {[%emt 0:00:05]} 36. h4 {[%emt 0:00:04]} Rd7 {[%emt 0:00:03]} 37. Be2 {[%emt 0:00:08]} Re7 {[%emt 0:00:04]} 38. Bf3 {[%emt 0:00:02]} Re8 {[%emt 0:00:07]} 39. Rb3 {[%emt 0:00:49]} Re7 {[%emt 0:00:01]} 40. Rb6 {[%emt 0:00:13]} Kc7 {[%emt 0:00:02]} 41. c4 {[%emt 0:00:06]} Re8 {[%emt 0:00:36]} 42. Be2 {[%emt 0:00:03]} Rf8 {[%emt 0:00:28]} 43. Ke3 {[%emt 0:00:05]} Re8+ {[%emt 0:00:40]} 44. Kd2 {[%emt 0:00:06]} Re4 {[%emt 0:00:03]} 45. Bd3 {[%emt 0:00:01]} Re8 {[%emt 0:00:01]} 46. Bc2 {[%emt 0:00:05]} Rf8 {[%emt 0:00:24]} 47. Ba4 {[%emt 0:00:18] aiming for Kd3. White leaves nothing to chance now.} Rf7 {[%emt 0:00:19]} 48. Be8 {[%emt 0:00:08] White is more active.} Rg7 {[%emt 0:00:18]} (48... Re7 $16 {was worth a try.} 49. Bxg6 Rg7) 49. Rb3 $18 {[%emt 0:00:19]} Kd8 {[%emt 0:00:10]} 50. Re3 {[%emt 0:00:05]} Be7 {[%emt 0:00:35]} (50... Bc7 $142 51. Ke2 Re7 52. Bxg6 Bxa5 53. Bxh5 Rxe3+ 54. Kxe3 Ke7) 51. Ba4 {[%emt 0:00:15]} Rf7 {[%emt 0:00:05]} 52. Kd3 {[%emt 0:00:09]} Rf6 {[%emt 0:00:25]} (52... Rf8 $142 53. Re1 Rf6) 53. b4 {[%emt 0:00:08][%cal Bb2b4,Bb4b5,Bb5b6][%mdl 32]} Bd6 {[%emt 0:00:40]} (53... Rf7 $142 54. b5 Rf6) 54. Re8+ {[%emt 0:00:04]} Kc7 {[%emt 0:00:00]} 55. b5 {[%emt 0:00:04][%csl Ga5][%cal Rb5b6] [#]} Bf8 {[%emt 0:00:18]} 56. b6+ {[%emt 0:00:01]} Kd6 {[%emt 0:00:01]} 57. Rb8 {[%emt 0:00:03]} Rf7 {[%emt 0:00:01]} 58. Be8 {[%emt 0:00:01]} Rg7 {[%emt 0:00:04]} 59. Ba4 {[%emt 0:00:03]} Rf7 {[%emt 0:00:05]} 60. Rd8+ {[%emt 0:00:02]} Ke7 {[%emt 0:00:01]} 61. Re8+ {[%emt 0:00:01]} Kf6 {[%emt 0:00:00]} 62. Re6+ {[%emt 0:00:01]} Kg7 {[%emt 0:00:01]} 63. Be8 {[%emt 0:00:03]} Rf6 {[%emt 0:00:01]} 64. Re2 {[%emt 0:00:03]} (64. Rxf6 $142 Kxf6 65. Bd7 (65. Bc6 $2 bxc6 66. Kd2 cxd5 $19) 65... Bg7 66. Bc8 Ke7 67. Bxb7 Bf6 68. Bxa6 Kd6 69. Bb5) 64... Bd6 {[%emt 0:00:06]} 65. Bd7 {[%emt 0:00:01] Black must now prevent Re6.} Rf8 {[%emt 0:00:08]} 66. Re6 {[%emt 0:00:02]} Bb8 {[%emt 0:00:03]} 67. Be8 {[%emt 0:00:01]} (67. Re8 $142 Rxe8 68. Bxe8) 67... Rf6 {[%emt 0:00:03]} 68. Rxf6 {[%emt 0:00:01] White mates.} Kxf6 {[%emt 0:00:00] KB-KB} 69. Bd7 {[%emt 0:00:01]} Ke7 {[%emt 0:00:06]} 70. Bc8 {[%emt 0:00:00]} g5 {[%emt 0:00:00]} 71. hxg5 {[%emt 0:00:02]} h4 {[%emt 0:00:00]} 72. gxh4 {[%emt 0:00:01][%cal Bg3h4,Bh4h5,Bh5h6][%mdl 32]} Bxf4 {[%emt 0:00:01]} 73. Bxb7 {[%emt 0:00:01]} Bg3 {[%emt 0:00:00]} 74. h5 {[%emt 0:00:02]} Be1 {[%emt 0:00:01]} 75. Bxa6 {[%emt 0:00:02]} Bxa5 {[%emt 0:00:02]} 76. b7 {[%emt 0:00:00]} Bc7 {[%emt 0:00:00]} 77. h6 {[%emt 0:00:04]} Kf7 {[%emt 0:00:00]} 78. Bb5 {[%emt 0:00:02]} Kg6 {[%emt 0:00:03]} 79. Be8+ {[%emt 0:00:02]} Kh7 {[%emt 0:00:02]} 80. Bd7 {[%emt 0:00:04]} f4 {[%emt 0:00:00]} 81. Bf5+ {[%emt 0:00:03]} Kg8 {[%emt 0:00:01]} 82. Ke4 {[%emt 0:00:02] Weighted Error Value: White=0.12 (very precise) /Black=0.34} 1-0